bitfinex/quotes_SOLUSD_20240607
["timestamp","ask_amount","ask_price","bid_price","bid_amount"]
[1717753520575,7.31,171.84,171.76,20.0]
[1717753520784,7.31,171.83,171.77,7.31]
[1717753520952,7.31,171.83,171.76,20.0]
[1717753521155,9.4632,171.83,171.75,7.1843019]
[1717753521352,7.31,171.83,171.75,7.1843019]
[1717753521553,7.31,171.83,171.77,7.31]
[1717753524201,9.4632,171.83,171.77,7.31]
[1717753525476,2.1532,171.83,171.77,7.31]
[1717753525680,9.4632,171.84,171.77,7.31]
[1717753528999,2.1533,171.83,171.77,7.31]
[1717753530184,2.1533,171.83,171.75,7.1843019]
[1717753530391,2.1533,171.83,171.77,7.31]
[1717753530562,9.4633,171.83,171.77,7.31]
[1717753531391,2.1533,171.83,171.77,7.31]
[1717753531567,9.4633,171.83,171.77,7.31]
[1717753533587,2.1532,171.84,171.77,7.31]
[1717753533795,7.31,171.83,171.77,7.31]
[1717753535398,2.1532,171.84,171.77,7.31]
[1717753535600,7.31,171.83,171.77,7.31]
[1717753536469,9.4632,171.83,171.77,7.31]
[1717753536811,6.05248136,171.86,171.75,0.9849019]
[1717753537018,2.1528,171.87,171.8,7.31]
[1717753537183,2.1526,171.89,171.82,7.31]
[1717753537512,9.4627,171.88,171.82,7.31]
[1717753539081,2.1529,171.87,171.75,42.4415019]
[1717753539278,4.3052,171.89,171.8,7.31]
[1717753539279,9.4629,171.86,171.8,7.31]
[1717753539807,2.1529,171.86,171.8,7.31]
[1717753540377,2.1528,171.87,171.8,7.31]
[1717753540698,9.4628,171.87,171.8,7.31]
[1717753540872,7.31,171.86,171.8,7.31]
[1717753542282,7.31,171.86,171.76,20.0]
[1717753542493,2.1528,171.87,171.8,7.31]
[1717753542707,2.1529,171.86,171.79,7.31]
[1717753545686,2.1528,171.87,171.79,7.31]
[1717753552608,7.31,171.87,171.8,7.31]
[1717753552942,7.31,171.87,171.81,7.31]
[1717753554409,9.4628,171.87,171.77,45.0]
[1717753554631,7.31,171.86,171.8,7.31]
[1717753554935,2.1528,171.87,171.79,7.31]
[1717753555131,7.31,171.85,171.79,7.31]
[1717753555443,2.1528,171.87,171.8,7.31]
[1717753555733,7.31,171.86,171.8,7.31]
[1717753556830,7.31,171.86,171.79,7.31]
[1717753557628,7.31,171.85,171.79,7.31]
[1717753560030,7.31,171.86,171.79,7.31]
[1717753560436,2.1528,171.87,171.79,7.31]
[1717753560735,7.31,171.86,171.79,7.31]
[1717753563838,8.19831715,171.88,171.8,7.31]
[1717753564011,7.31,171.87,171.8,7.31]
[1717753564213,8.19831715,171.88,171.8,7.31]
[1717753564513,7.31,171.87,171.8,7.31]
[1717753564714,15.50831715,171.88,171.81,7.31]
[1717753565129,9.4627,171.88,171.81,7.31]
[1717753565337,2.1528,171.87,171.81,7.31]
[1717753565541,9.4627,171.88,171.81,7.31]
[1717753565747,2.1528,171.87,171.81,7.31]
[1717753566535,9.4627,171.88,171.81,7.31]
[1717753566749,2.1528,171.87,171.81,7.31]
[1717753571243,9.4628,171.87,171.81,7.31]
[1717753573548,9.4628,171.87,171.79,6.2997]
[1717753573736,7.31,171.86,171.8,52.31]
[1717753575458,9.4628,171.87,171.8,52.31]
[1717753576529,9.4628,171.87,171.79,6.2997]
[1717753576730,9.4628,171.87,171.8,7.31]
[1717753578135,9.4628,171.87,171.79,6.2997]
[1717753578329,9.4628,171.87,171.8,7.31]
[1717753580251,2.1528,171.87,171.8,7.31]
[1717753580551,7.31,171.86,171.8,7.31]
[1717753580847,7.31,171.87,171.8,7.31]
[1717753581350,7.31,171.87,171.81,0.77346998]
[1717753582833,9.4628,171.87,171.81,0.77346998]
[1717753583147,9.4628,171.87,171.81,2.1629723]
[1717753584556,2.1528,171.87,171.81,9.4729723]
[1717753584950,2.1528,171.87,171.81,2.1629723]
[1717753585149,2.1528,171.87,171.8,2.16297229]
[1717753585448,2.1528,171.87,171.81,9.4731154]
[1717753587152,2.1528,171.87,171.79,6.2997]
[1717753587360,9.4629,171.86,171.8,7.31]
[1717753587540,9.4629,171.86,171.79,13.6097]
[1717753588358,7.31,171.86,171.79,13.6097]
[1717753588559,2.1527,171.88,171.79,13.6097]
[1717753588864,9.4626,171.89,171.82,7.31]
[1717753589266,2.1526,171.89,171.82,7.31]
[1717753589836,2.1524,171.9,171.82,7.31]
[1717753590149,9.4624,171.9,171.83,7.31]
[1717753590451,2.1524,171.9,171.83,7.31]
[1717753590764,9.4624,171.9,171.83,7.31]
[1717753591656,2.1525,171.89,171.83,7.31]
[1717753592569,9.4625,171.89,171.83,7.31]
[1717753594770,2.1525,171.89,171.83,13.9016]
[1717753595067,9.4624,171.9,171.83,13.9016]
[1717753595265,9.4624,171.9,171.84,7.31]
[1717753597672,2.1525,171.89,171.84,13.6764]
[1717753607672,2.1525,171.89,171.85,6.0325]
[1717753608975,2.1526,171.89,171.85,6.0325]
[1717753609277,9.4626,171.88,171.81,6.0325]
[1717753609572,7.31,171.87,171.81,6.0325]
[1717753609959,2.1526,171.88,171.81,13.3425]
[1717753609960,9.4626,171.88,171.81,13.3425]
[1717753612278,7.31,171.88,171.81,13.3425]
[1717753612658,7.31,171.87,171.81,6.0325]
[1717753612858,7.31,171.87,171.81,13.3425]
[1717753613683,7.31,171.87,171.81,6.0325]
[1717753613901,7.31,171.87,171.81,13.3425]
[1717753614553,7.31,171.87,171.81,6.0325]
[1717753614868,7.31,171.87,171.81,13.3425]
[1717753616158,7.31,171.87,171.81,6.0325]
[1717753616358,7.31,171.87,171.81,13.3425]
[1717753617466,7.31,171.86,171.79,15.8782]
[1717753617676,7.31,171.85,171.79,23.1882]
[1717753619087,7.31,171.86,171.79,23.1882]
[1717753619787,7.31,171.86,171.8,7.31]
[1717753620581,7.31,171.86,171.75,22.5805019]
[1717753620582,9.4633,171.83,171.75,22.5805019]
[1717753620766,7.31,171.83,171.77,7.31]
[1717753622184,9.4633,171.83,171.77,7.31]
[1717753624182,2.1532,171.84,171.78,7.31]
[1717753624382,4.306,171.86,171.79,7.31]
[1717753624383,9.4631,171.85,171.79,7.31]
[1717753624689,2.1531,171.85,171.75,22.5805019]
[1717753624891,2.1531,171.85,171.79,7.31]
[1717753625272,9.4631,171.85,171.79,7.31]
[1717753625988,2.1531,171.85,171.8,7.31]
[1717753626290,2.1531,171.85,171.8,13.3875]
[1717753626681,2.1531,171.84,171.8,13.3875]
[1717753629388,2.1531,171.84,171.8,6.0775]
[1717753636620,2.1532,171.83,171.8,6.0775]
[1717753636909,2.1532,171.83,171.79,7.31]
[1717753637093,2.1532,171.83,171.76,51.1887]
[1717753637293,2.1532,171.83,171.78,7.31]
[1717753637512,2.1532,171.83,171.76,51.1887]
[1717753637819,2.1532,171.83,171.77,7.31]
[1717753637986,9.4632,171.83,171.77,7.31]
[1717753639794,2.1532,171.83,171.78,7.31]
[1717753640207,9.4632,171.84,171.78,7.31]
[1717753641015,2.1532,171.84,171.78,7.31]
[1717753647816,2.1536,171.8,171.75,8.2949019]
[1717753648615,9.4636,171.81,171.75,8.2949019]
[1717753649696,2.1536,171.81,171.75,8.2949019]
[1717753650001,9.4634,171.82,171.76,7.31]
[1717753651300,2.1534,171.82,171.76,7.31]
[1717753652225,2.1535,171.81,171.76,7.31]
[1717753652395,2.1535,171.82,171.76,7.31]
[1717753652596,2.1535,171.81,171.76,7.31]
[1717753652822,9.4635,171.81,171.75,8.2949019]
[1717753654505,7.31,171.81,171.75,8.2949019]
[1717753654719,2.1535,171.82,171.76,7.31]
[1717753654720,9.4635,171.82,171.76,7.31]
[1717753655424,2.1535,171.81,171.76,7.31]
[1717753657629,9.4634,171.82,171.76,7.31]
[1717753662511,2.1534,171.82,171.76,7.31]
[1717753662723,9.4634,171.82,171.76,7.31]
[1717753663137,2.1534,171.82,171.76,7.31]
[1717753663340,9.4634,171.82,171.76,7.31]
[1717753664242,9.4634,171.82,171.75,0.9849019]
[1717753664442,2.1535,171.81,171.75,0.9849019]
[1717753666144,9.4634,171.82,171.76,7.31]
[1717753666645,7.31,171.81,171.75,8.2949019]
[1717753666822,9.4635,171.81,171.75,8.2949019]
[1717753668633,7.31,171.81,171.75,8.2949019]
[1717753669745,9.4635,171.81,171.75,8.2949019]
[1717753670139,7.31,171.81,171.75,8.2949019]
[1717753672227,9.4635,171.81,171.75,8.2949019]
[1717753672421,9.4635,171.81,171.75,0.9849019]
[1717753672627,9.4635,171.81,171.75,8.2949019]
[1717753674643,2.1535,171.81,171.75,8.2949019]
[1717753674827,9.4635,171.81,171.75,8.2949019]
[1717753675648,9.4635,171.81,171.75,0.9849019]
[1717753675831,2.1536,171.8,171.75,0.9849019]
[1717753676028,2.1536,171.8,171.75,8.2949019]
[1717753676729,9.4636,171.81,171.75,8.2949019]
[1717753677753,9.4636,171.81,171.75,0.9849019]
[1717753677927,7.31,171.79,171.75,0.9849019]
[1717753678132,2.1539,171.78,171.75,0.9849019]
[1717753678424,9.4639,171.78,171.75,0.9849019]
[1717753678645,7.31,171.76,171.75,0.9849019]
[1717753679733,9.4641,171.76,171.75,0.9849019]
[1717753679931,7.31,171.76,171.75,0.9849019]
[1717753682445,9.4641,171.76,171.75,0.9849019]
[1717753683354,7.31,171.76,171.75,0.9849019]
[1717753686652,9.4641,171.76,171.75,0.9849019]
[1717753687052,13.7724,171.76,171.75,0.9849019]
[1717753687231,20.2349,171.76,171.75,0.9849019]
[1717753687433,28.8515,171.76,171.75,0.9849019]
[1717753689240,20.2349,171.76,171.75,0.9849019]
[1717753694468,13.7724,171.76,171.75,0.9849019]
[1717753694646,9.4641,171.76,171.75,0.9849019]
[1717753696845,20.2349,171.76,171.75,0.9849019]
[1717753697361,28.8515,171.76,171.75,0.9849019]
[1717753705267,21.5415,171.76,171.75,0.9849019]
[1717753705469,28.8515,171.76,171.75,0.9849019]
[1717753708080,44.8505,171.76,171.75,0.9849019]
[1717753710184,28.8515,171.76,171.75,0.9849019]
[1717753713179,73.8515,171.76,171.75,0.9849019]
[1717753727388,2.1547,171.71,171.7,0.5]
[1717753727681,9.4647,171.71,171.7,0.5]
[1717753728592,28.8576,171.71,171.7,0.5]
[1717753728992,2.1551,171.69,171.65,18.6004]
[1717753729179,2.1551,171.68,171.66,6.3277]
[1717753729378,7.31,171.67,171.66,6.3277]
[1717753730190,2.1551,171.68,171.65,16.4449]
[1717753730401,2.1551,171.68,171.66,6.0101]
[1717753730700,7.31,171.67,171.66,6.0101]
[1717753732001,9.4652,171.67,171.66,6.0101]
[1717753734600,7.31,171.67,171.62,18.2777]
[1717753734793,7.31,171.65,171.64,6.56]
[1717753735594,7.31,171.65,171.62,6.0253]
[1717753735906,8.6207,171.68,171.6,6.0]
[1717753735907,9.4658,171.63,171.6,6.0]
[1717753736198,7.31,171.61,171.6,6.0]
[1717753736405,7.31,171.62,171.61,6.616]
[1717753737992,7.31,171.62,171.6,8.7281]
[1717753738292,2.1557,171.64,171.59,0.8081981]
[1717753738293,4.3114,171.64,171.59,0.8081981]
[1717753738604,7.31,171.6,171.59,0.8081981]
[1717753741198,2.1558,171.63,171.59,2.9644981]
[1717753741405,2.1558,171.63,171.6,6.5937]
[1717753741607,7.31,171.62,171.6,6.5937]
[1717753742788,8.24238542,171.65,171.61,2.1559]
[1717753742994,7.31,171.64,171.61,8.1943]
[1717753743598,8.24238542,171.65,171.61,8.1943]
[1717753743809,7.31,171.63,171.61,6.0384]
[1717753744108,6.08688542,171.65,171.62,6.4668]
[1717753744407,7.31,171.64,171.63,6.4668]
[1717753744784,7.31,171.65,171.63,6.4668]
[1717753745184,9.4655,171.65,171.63,6.4668]
[1717753745397,2.1555,171.65,171.63,6.4668]
[1717753745609,7.31,171.64,171.63,6.4668]
[1717753746005,9.4656,171.64,171.63,6.4668]
[1717753746207,9.4656,171.64,171.61,22.0341]
[1717753746392,7.31,171.63,171.61,22.0341]
[1717753747013,7.31,171.63,171.61,6.5457]
[1717753748093,7.31,171.62,171.61,6.5457]
[1717753748700,2.1556,171.64,171.61,6.5457]
[1717753748896,2.1556,171.65,171.61,6.5457]
[1717753749214,7.31,171.63,171.61,6.5457]
[1717753750107,7.31,171.62,171.59,0.8081981]
[1717753750321,7.31,171.6,171.59,0.8081981]
[1717753750500,2.1559,171.62,171.59,0.8081981]
[1717753750909,2.1558,171.63,171.59,7.1518981]
[1717753751092,7.31,171.61,171.59,7.1518981]
[1717753752008,2.1558,171.63,171.59,7.1518981]
[1717753752190,7.31,171.62,171.59,7.1518981]
[1717753753114,2.1558,171.63,171.59,7.1518981]
[1717753753415,9.4659,171.62,171.59,7.1518981]
[1717753754914,9.4659,171.62,171.59,0.8081981]
[1717753755316,7.31,171.61,171.59,0.8081981]
[1717753756908,9.466,171.61,171.59,0.8081981]
[1717753759619,7.31,171.61,171.59,0.8081981]
[1717753763817,9.4659,171.62,171.59,0.8081981]
[1717753764519,7.31,171.62,171.59,0.8081981]
[1717753764722,7.31,171.6,171.59,0.8081981]
[1717753765039,9.4661,171.61,171.59,0.8081981]
[1717753766722,7.31,171.61,171.59,0.8081981]
[1717753767220,2.1559,171.62,171.59,0.8081981]
[1717753767526,9.4659,171.62,171.59,7.0641981]
[1717753767720,2.1559,171.62,171.59,9.2204981]
[1717753768022,9.4659,171.62,171.59,7.0641981]
[1717753768529,9.4659,171.62,171.59,0.8081981]
[1717753768937,9.466,171.61,171.59,0.8081981]
[1717753769234,7.31,171.61,171.59,0.8081981]
[1717753771127,16.86577218,171.64,171.6,6.3657]
[1717753771327,2.1559,171.62,171.6,6.3657]
[1717753771549,7.31,171.62,171.6,6.3657]
[1717753771713,9.4659,171.62,171.6,6.3657]
[1717753772119,2.1559,171.62,171.6,6.3657]
[1717753772425,7.31,171.63,171.6,6.3657]
[1717753772630,8.6211,171.68,171.62,6.1566]
[1717753772808,7.31,171.65,171.62,6.1566]
[1717753773518,9.4655,171.65,171.62,6.1566]
[1717753775205,2.1555,171.65,171.62,6.1566]
[1717753775412,9.4655,171.65,171.62,6.1566]
[1717753776611,2.1555,171.65,171.62,6.1566]
[1717753776811,9.4655,171.65,171.62,6.1566]
[1717753777412,2.1556,171.64,171.62,6.1566]
[1717753778235,7.31,171.63,171.6,24.1047]
[1717753778735,7.31,171.63,171.61,6.6218]
[1717753778916,9.4656,171.64,171.61,6.6218]
[1717753780137,7.31,171.64,171.61,6.6218]
[1717753780838,7.31,171.64,171.61,8.7778]
[1717753783049,6.08283839,171.68,171.64,6.5173]
[1717753783348,2.1553,171.67,171.64,6.5173]
[1717753783513,9.4653,171.67,171.64,6.5173]
[1717753784736,7.31,171.66,171.64,6.5173]
[1717753784916,7.31,171.66,171.62,24.7521]
[1717753785235,7.31,171.65,171.62,8.2637]
[1717753785440,2.1553,171.67,171.63,2.1557]
[1717753785743,7.31,171.65,171.63,2.1557]
[1717753787221,7.31,171.65,171.62,8.2637]
[1717753787942,7.31,171.65,171.63,2.1557]
[1717753788318,7.31,171.66,171.63,2.1557]
[1717753789736,7.31,171.66,171.63,8.4888]
[1717753791351,9.4653,171.67,171.63,8.4888]
[1717753794424,7.31,171.67,171.63,8.4888]
[1717753794628,7.31,171.67,171.64,6.2977]
[1717753795237,7.31,171.67,171.64,8.4533]
[1717753795548,9.4652,171.68,171.65,6.2977]
[1717753797349,2.1552,171.68,171.65,6.2977]
[1717753797551,9.4652,171.68,171.65,6.2977]
[1717753797934,2.155,171.69,171.66,6.3276]
[1717753798253,2.1549,171.7,171.66,6.3276]
[1717753798554,7.31,171.69,171.66,8.483]
[1717753798852,2.155,171.69,171.65,2.1555]
[1717753799147,2.155,171.69,171.65,6.3607]
[1717753799352,9.465,171.69,171.65,8.5162]
[1717753799728,7.31,171.69,171.65,8.5162]
[1717753799927,7.31,171.69,171.66,6.3607]
[1717753800339,2.1549,171.7,171.66,6.3607]
[1717753800644,7.31,171.69,171.66,6.3607]
[1717753801646,2.1549,171.7,171.66,6.3607]
[1717753801840,7.31,171.69,171.66,6.3607]
[1717753802732,2.1549,171.7,171.66,6.3607]
[1717753802939,7.31,171.69,171.66,6.3607]
[1717753803235,9.465,171.69,171.66,6.3607]
[1717753803637,7.31,171.69,171.66,6.3607]
[1717753804232,9.465,171.69,171.65,2.1555]
[1717753805437,7.31,171.68,171.65,2.1555]
[1717753806140,7.31,171.68,171.65,8.7831]
[1717753806653,2.1554,171.66,171.62,6.5599]
[1717753806949,7.31,171.64,171.62,6.5599]
[1717753807746,2.1554,171.66,171.62,8.7158]
[1717753807962,7.31,171.64,171.62,8.7158]
[1717753808648,2.1554,171.66,171.62,8.7158]
[1717753808846,7.31,171.64,171.62,8.7158]
[1717753810073,7.31,171.65,171.62,8.7158]
[1717753810279,2.1553,171.67,171.62,8.7158]
[1717753810473,7.31,171.65,171.63,2.1557]
[1717753811782,2.1552,171.68,171.64,8.7668]
[1717753811962,9.4652,171.68,171.64,8.7668]
[1717753812162,9.4652,171.68,171.65,6.6112]
[1717753812363,2.1552,171.68,171.65,6.6112]
[1717753812682,9.4652,171.68,171.65,6.6112]
[1717753814389,2.1553,171.67,171.65,6.6112]
[1717753815361,2.1554,171.66,171.63,2.1557]
[1717753815561,2.1554,171.66,171.63,8.6293]
[1717753815782,2.1553,171.67,171.63,8.6293]
[1717753816000,2.1553,171.67,171.64,6.4736]
[1717753817802,2.1549,171.7,171.65,6.4736]
[1717753817987,9.4648,171.71,171.67,8.6288]
[1717753818407,9.4648,171.71,171.67,6.4736]
[1717753818587,2.1548,171.71,171.67,6.4736]
[1717753818790,9.4648,171.71,171.67,6.4736]
[1717753818982,4.3093,171.72,171.68,6.4105]
[1717753818983,2.1547,171.72,171.68,6.4105]
[1717753819506,7.31,171.71,171.68,6.4105]
[1717753819704,9.4647,171.71,171.68,6.4105]
[1717753820388,9.4647,171.71,171.58,120.0]
[1717753820389,7.31,171.69,171.62,7.31]
[1717753820594,2.1549,171.7,171.62,7.31]
[1717753820915,2.1548,171.71,171.62,7.31]
[1717753821099,7.31,171.69,171.62,7.31]
[1717753821300,7.31,171.69,171.63,7.31]
[1717753821488,2.1548,171.71,171.63,7.31]
[1717753822104,7.31,171.69,171.63,7.31]
[1717753824087,8.23642207,171.72,171.63,7.31]
[1717753824288,8.23642207,171.72,171.64,7.31]
[1717753824511,7.31,171.7,171.64,7.31]
[1717753826109,8.23642207,171.72,171.64,7.31]
[1717753826292,7.31,171.7,171.64,7.31]
[1717753826494,2.1546,171.73,171.65,6.3215]
[1717753826700,7.31,171.7,171.67,6.3215]
[1717753827605,7.31,171.7,171.65,51.3215]
[1717753828197,7.31,171.7,171.66,6.518]
[1717753829009,7.31,171.68,171.65,45.0]
[1717753829213,7.31,171.67,171.61,23.9444]
[1717753829401,7.31,171.67,171.63,6.5202]
[1717753829595,7.31,171.67,171.64,45.0]
[1717753829998,7.31,171.67,171.64,51.5202]
[1717753831422,7.31,171.67,171.64,6.5202]
[1717753832013,7.31,171.68,171.64,6.5202]
[1717753832521,2.1548,171.71,171.64,6.5202]
[1717753832826,7.31,171.68,171.64,6.5202]
[1717753833401,2.1548,171.71,171.64,6.5202]
[1717753833627,7.31,171.68,171.64,6.5202]
[1717753840733,4.3094,171.72,171.61,23.9444]
[1717753840912,2.1549,171.7,171.62,51.4735]
[1717753841111,7.31,171.68,171.62,51.4735]
[1717753842116,4.3094,171.72,171.62,51.4735]
[1717753842117,7.31,171.67,171.63,6.4735]
[1717753843041,2.1551,171.69,171.63,6.4735]
[1717753843225,7.31,171.67,171.63,6.4735]
[1717753846705,7.31,171.66,171.63,6.4735]
[1717753847329,9.4654,171.66,171.59,8.1181981]
[1717753847519,7.31,171.64,171.61,2.156]
[1717753847723,7.31,171.63,171.61,2.156]
[1717753848030,7.31,171.63,171.62,2.1559]
[1717753848533,7.31,171.63,171.61,2.156]
[1717753852635,2.1556,171.64,171.61,2.156]
[1717753852830,7.31,171.63,171.61,2.156]
[1717753853737,7.31,171.63,171.59,7.2855981]
[1717753854319,7.31,171.63,171.61,2.1559]
[1717753855338,2.1556,171.65,171.61,2.1559]
[1717753855537,7.31,171.64,171.61,2.1559]
[1717753857137,7.31,171.63,171.61,2.1559]
[1717753857628,2.1556,171.65,171.61,2.1559]
[1717753857816,7.31,171.64,171.61,2.1559]
[1717753858930,9.4656,171.64,171.61,2.1559]
[1717753859437,9.4658,171.63,171.6,2.1561]
[1717753859751,7.31,171.62,171.6,2.1561]
[1717753860642,7.31,171.63,171.6,2.1561]
[1717753861946,7.31,171.63,171.59,0.8081981]
[1717753861947,2.1557,171.64,171.61,2.156]
[1717753862159,7.31,171.63,171.61,2.156]
[1717753863628,9.4657,171.64,171.61,2.156]
[1717753865141,7.31,171.64,171.63,2.1558]
[1717753865363,4.77469473,171.74,171.66,2.1554]
[1717753865364,6.4638,171.73,171.66,2.1554]
[1717753865549,7.31,171.69,171.65,2.1554]
[1717753865727,7.31,171.68,171.66,2.1553]
[1717753868351,7.31,171.68,171.65,2.1554]
[1717753870851,7.31,171.67,171.65,2.1554]
[1717753871251,7.31,171.66,171.61,15.2318]
[1717753871428,7.31,171.65,171.64,2.1556]
[1717753871638,7.31,171.65,171.61,6.6097]
[1717753871954,2.1554,171.66,171.61,6.6097]
[1717753871955,7.31,171.64,171.62,2.1558]
[1717753872327,7.31,171.63,171.62,2.1558]
[1717753875542,7.31,171.63,171.61,2.1559]
[1717753875744,7.31,171.63,171.62,2.1559]
[1717753881938,2.1553,171.67,171.63,2.1557]
[1717753882249,7.31,171.64,171.63,2.1557]
[1717753882935,7.31,171.65,171.63,2.1557]
[1717753884766,2.1553,171.67,171.63,2.1557]
[1717753884980,7.31,171.65,171.63,2.1557]
[1717753885345,2.1553,171.67,171.63,2.1557]
[1717753885680,7.31,171.65,171.63,2.1557]
[1717753885962,7.31,171.64,171.63,2.1557]
[1717753887883,7.31,171.65,171.63,2.1557]
[1717753889356,7.31,171.64,171.63,2.1557]
[1717753892570,2.1553,171.67,171.63,2.1557]
[1717753892753,7.31,171.64,171.63,2.1557]
[1717753898077,2.1553,171.67,171.63,2.1557]
[1717753898273,7.31,171.64,171.63,2.1557]
[1717753899078,2.1553,171.67,171.63,2.1557]
[1717753899382,7.31,171.64,171.63,2.1557]
[1717753903980,2.1553,171.67,171.59,0.8081981]
[1717753903981,2.1553,171.67,171.59,8.1181981]
[1717753904155,2.1551,171.68,171.59,8.1181981]
[1717753904362,7.31,171.66,171.64,2.1556]
[1717753905367,2.1551,171.68,171.64,2.1556]
[1717753905571,2.155,171.69,171.65,2.1555]
[1717753905772,7.31,171.67,171.65,2.1555]
[1717753906468,2.155,171.69,171.65,2.1555]
[1717753906669,7.31,171.67,171.64,2.1556]
[1717753907673,7.31,171.66,171.64,2.1556]
[1717753907884,7.31,171.66,171.63,2.1557]
[1717753908592,7.31,171.66,171.63,8.7277]
[1717753909469,7.31,171.66,171.64,2.1556]
[1717753910497,7.31,171.66,171.63,8.7277]
[1717753915693,7.31,171.65,171.63,8.7277]
[1717753916710,2.1553,171.67,171.63,8.7277]
[1717753916904,7.31,171.65,171.63,8.7277]
[1717753917280,7.31,171.65,171.64,2.1556]
[1717753917778,7.31,171.65,171.63,8.7277]
[1717753918394,7.31,171.65,171.64,2.1556]
[1717753918601,7.31,171.66,171.64,2.1556]
[1717753921499,7.31,171.66,171.63,8.7277]
[1717753923903,7.31,171.66,171.64,2.1556]
[1717753924492,6.466,171.67,171.59,6.9436981]
[1717753924693,7.31,171.62,171.6,2.1561]
[1717753925207,2.1557,171.64,171.61,2.156]
[1717753925431,7.31,171.62,171.61,2.156]
[1717753931215,7.31,171.63,171.62,2.1559]
[1717753933099,2.1554,171.66,171.62,2.1559]
[1717753933299,7.31,171.63,171.62,2.1559]
[1717753936729,2.1554,171.66,171.62,2.1559]
[1717753936931,7.31,171.64,171.62,2.1559]
[1717753940341,2.1554,171.66,171.62,2.1559]
[1717753940625,8.23710179,171.67,171.63,2.1557]
[1717753940829,7.31,171.65,171.63,2.1557]
[1717753941008,2.1554,171.66,171.63,2.1557]
[1717753941209,7.31,171.65,171.63,2.1557]
[1717753943233,2.1552,171.68,171.64,2.1556]
[1717753943439,7.31,171.66,171.64,2.1556]
[1717753944108,7.31,171.66,171.63,2.1557]
[1717753944313,7.31,171.66,171.64,6.0306]
[1717753944513,2.1553,171.67,171.64,8.1862]
[1717753944514,7.31,171.67,171.64,8.1862]
[1717753944712,7.31,171.67,171.65,6.4861]
[1717753945114,7.31,171.67,171.65,8.6416]
[1717753945329,2.1552,171.68,171.65,6.4861]
[1717753945517,7.31,171.67,171.65,6.4861]
[1717753945720,2.1552,171.68,171.65,6.4861]
[1717753945921,7.31,171.67,171.65,6.4861]
[1717753946228,7.31,171.66,171.64,2.1555]
[1717753951251,7.31,171.66,171.64,8.4033]
[1717753951420,7.31,171.66,171.65,2.1555]
[1717753952015,7.31,171.67,171.65,2.1555]
[1717753952422,7.31,171.66,171.65,2.1555]
[1717753952641,7.31,171.66,171.64,2.1555]
[1717753955621,2.1551,171.68,171.64,2.1555]
[1717753955923,7.31,171.66,171.64,2.1555]
[1717753956848,7.31,171.66,171.65,2.1555]
[1717753958744,2.1551,171.69,171.65,2.1555]
[1717753958947,2.1549,171.7,171.66,2.1553]
[1717753959132,7.31,171.67,171.66,2.1553]
[1717753959630,7.31,171.67,171.65,2.1554]
[1717753959838,7.31,171.66,171.65,2.1554]
[1717753960145,7.31,171.67,171.65,2.1554]